Cogmind - Beta 14 @@@ ROGUE MODE // 2024.09.02 @ 21:46:15 Player: Decinym Result: Destroyed by CL-ANK with CL-ANK's Mallet Performance ------------- Evolutions (1) 500 Regions Visited (6) 1200 Robots Destroyed (56) 280 Value Destroyed (1008) 1008 Prototype IDs (27) 540 Alien Tech Used (0) 0 Bonus (300) 300 TOTAL SCORE: 3828 Bonus ------- Aligned with FarCom 300 Cogmind --------- Core Integrity 0/400 Matter 270/300 Energy 275/280 System Corruption 0% Temperature Cool (32) Movement Treading (560) Ox5 Location -8/Mines Parts ------- > --- POWER (1) -------- Heavy Ion Engine > --- PROPULSION (3) --- Light Treads > --- UTILITY (3) ------ Huge Storage Unit Advanced Weapon Cycler Medium Armor Plating > --- WEAPON (2) ------- Minigun 8R-AWN's Boregun > --- INVENTORY (25) --- Heavy Ion Engine Heavy Deuterium Engine Light Treads Advanced Myomer Leg Combat Antigrav System High-capacity Matter Pod (200) Advanced Launcher Guidance Computer Experimental Core Analyzer Improved Armor Integrity Analyzer 8R-AWN's Armor/EX Makeshift Hacking Suite Advanced Component Analysis Suite Improved System Guard Advanced Recalibrator Improved EM Shotgun Flak Cannon Flak Cannon Flak Cannon Flak Cannon Grenade Launcher Grenade Launcher Rocket Launcher Mining Laser Peak State ------------ > --- POWER ------------ Heavy Ion Engine > --- PROPULSION ------- Light Treads Light Treads Light Treads > --- UTILITY ---------- Huge Storage Unit Advanced Weapon Cycler System Purifier > --- WEAPON ----------- Minigun 8R-AWN's Boregun > --- INVENTORY -------- Heavy Ion Engine Heavy Deuterium Engine Light Treads Advanced Myomer Leg Advanced Launcher Guidance Computer Experimental Core Analyzer 8R-AWN's Armor/EX Advanced Component Analysis Suite Improved System Guard Advanced Recalibrator Improved EM Shotgun Latent Energy Streamer Heavy Assault Rifle Minigun Flak Cannon Flak Cannon Flak Cannon Flak Cannon Grenade Launcher Grenade Launcher Rocket Launcher Mining Laser [Rating: 49] Favorites ----------- Power Heavy Ion Engine Engine Heavy Ion Engine Propulsion Light Treads Treads Light Treads Leg Aluminum Leg Utility Huge Storage Unit Device Heat Sink Storage Huge Storage Unit Protection Light Armor Plating Weapon Minigun Energy Gun Improved EM Shotgun Energy Cannon Latent Energy Streamer Ballistic Gun Minigun Launcher Rocket Launcher Build | -11 -10 -10 -9 -9 -9 -8 ------- Run | Yrd Mat Min Mat Min Exi Min Slots Evolved 2 | . . . 2 . . . Power . | . . . . . . . Propulsion 1 | . . . 1 . . . Utility 1 | . . . 1 . . . Weapon . | . . . . . . . Parts Attached 51 | . 10 1 25 . 15 . Power 5 | . 1 . 3 . 1 . Engine 5 | . 1 . 3 . 1 . Core . | . . . . . . . Reactor . | . . . . . . . Propulsion 18 | . 4 1 9 . 4 . Treads 13 | . . . 9 . 4 . Leg 5 | . 4 1 . . . . Wheel . | . . . . . . . Hover . | . . . . . . . Flight . | . . . . . . . Utility 11 | . 2 . 6 . 3 . Device 4 | . 1 . 1 . 2 . Storage 2 | . 1 . 1 . . . Processor . | . . . . . . . Hackware . | . . . . . . . Protection 5 | . . . 4 . 1 . Artifact . | . . . . . . . Weapon 17 | . 3 . 7 . 7 . Energy Gun 4 | . 1 . 3 . . . Energy Cannon 1 | . . . . . 1 . Ballistic Gun 11 | . 2 . 4 . 5 . Ballistic Cannon . | . . . . . . . Launcher 1 | . . . . . 1 . Special Weapon . | . . . . . . . Impact Weapon . | . . . . . . . Slashing Weapon . | . . . . . . . Piercing Weapon . | . . . . . . . Special Melee Weapon . | . . . . . . . Unidentified Prototypes 4 | . . . 2 . 2 . Corrupted Parts 1 | . . . . . 1 . System Corruption 7 | . . . . . 7 . Parts Lost 20 | . 5 . 4 . 9 2 Power 3 | . 1 . 1 . 1 . Propulsion 9 | . 1 . 2 . 4 2 Utility 3 | . . . 1 . 2 . Weapon 5 | . 3 . . . 2 . Highest Loss Streak 6 | . 3 . 2 . 6 2 To Critical Strikes 5 | . 1 . . . 4 . Average Slot Usage (%) 95 | . 94 100 97 100 93 100 Engine 11 | . 13 14 11 11 11 11 Treads 23 | . . . 32 33 31 33 Leg 7 | . 28 28 . . . . Device 10 | . 8 14 11 11 10 11 Storage 11 | . 14 14 11 11 11 11 Protection 5 | . . . 9 11 6 11 Energy Gun 1 | . 4 . 4 . . . Ballistic Gun 22 | . 23 28 17 22 21 22 Peak Build Rating 49 | . 10 11 19 19 49 42 Average Rating 20 | . 8 10 14 19 29 41 On Entrance 16 | 6 6 10 10 19 19 42 Naked Turns . | . . . . . . . Heaviest Build 105 | 14 30 28 98 98 105 105 Greatest Support 60 | 20 20 20 60 60 60 60 Greatest Overweight (x) 2 | . 1 1 1 1 2 1 Average Overweight (x) . | . . 1 . 1 1 1 Largest Inventory Capacity 25 | . 15 15 25 25 25 25 Average Capacity 20 | . 11 15 18 25 25 25 Most Carried 25 | . 13 15 20 22 25 25 Average Carried 18 | . 9 14 16 20 22 25 Final Capacity 25 | 8 15 15 25 25 25 25 Final Carried 25 | 6 13 14 20 22 25 25 Class Distribution -------------------- 82% | Scavenger-Mutant 17% | Mutant Dominant Class ---------------- Mutant | -10/Materials Scavenger-Mutant | -10/Mines Scavenger-Mutant | -9/Materials Scavenger-Mutant | -9/Mines Scavenger-Mutant | -9/Exiles Scavenger-Mutant | -8/Mines Resources | -11 -10 -10 -9 -9 -9 -8 ----------- Run | Yrd Mat Min Mat Min Exi Min Matter Collected 2266 | 200 315 26 330 54 1341 . Remotely . | . . . . . . . Salvage Created 2167 | . 752 75 757 27 556 . Parts 169 | . 48 4 42 1 74 . Haulers Intercepted 5 | . 2 . 3 . . . Recyclers Shooed 4 | . 4 . . . . . Parts Field Recycled . | . . . . . . . Retrieved Matter . | . . . . . . . Parts Self-Destructed . | . . . . . . . Prevented . | . . . . . . . Kills | -11 -10 -10 -9 -9 -9 -8 ------- Run | Yrd Mat Min Mat Min Exi Min Combat Hostiles Destroyed 38 | . 16 3 16 2 1 . Guns 38 | . 16 3 16 2 1 . Classes Destroyed 8 | . 4 . 2 . 2 . Hauler 5 | . 2 . 3 . . . Recycler 3 | . 3 . . . . . Turret 1 | . . . . . 1 . Swarmer 19 | . 9 2 6 2 . . Grunt 11 | . 7 1 3 . . . Brawler 1 | . . . 1 . . . Sentry 6 | . . . 6 . . . Zionite 7 | . . . . . 7 . Best Kill Streak 5 | . 3 2 5 2 3 . Combat Bots Only 5 | . 3 2 5 2 1 . Max Kills in Single Turn 2 | . 2 1 1 2 2 . Gunslinging 1 | . 1 . . 1 . . Exploded . | . . . . . . . Melee . | . . . . . . . Uniques/NPCs Destroyed 4 | . . . . . 4 . 8R-AWN (-9/Exiles) EX-DEC (-9/Exiles) EX-BIN (-9/Exiles) EX-HEX (-9/Exiles) Combat | -11 -10 -10 -9 -9 -9 -8 -------- Run | Yrd Mat Min Mat Min Exi Min Hostile Shots Fired 326 | . 99 . 119 5 99 4 Missed 78 | . 20 . 33 3 22 . Damage Taken 3691 | . 813 . 1113 17 1313 435 Core 590 | . 155 . 147 . 161 127 Absorbed by Shields 144 | . . . . . 144 . Redirected to Shielding 9 | . . . 9 . . . Regen/Repaired (Parts) 176 | . . . 176 . . . Core Remaining (%) 69 | 100 . 38 . . . . Volleys Fired 269 | . 63 8 77 1 116 4 Largest 2 | . 2 2 2 2 2 2 Hottest 90 | . 70 40 90 50 60 55 Shots Fired 509 | . 126 16 154 2 203 8 Gun 498 | . 126 16 154 2 192 8 Cannon 2 | . . . . . 2 . Launcher 9 | . . . . . 9 . Special . | . . . . . . . Kinetic 429 | . 92 16 119 2 192 8 Thermal 55 | . 34 . 21 . . . Explosive 9 | . . . . . 9 . Electromagnetic 16 | . . . 14 . 2 . Robot Hit Streak 22 | . 9 9 22 4 15 7 Robot Miss Streak 5 | . 5 2 2 . 5 1 Penetration Max 1 | . . . . . 1 . Secondary Targets 6 | . 3 . 2 1 . . Max Gunslinging Chain 1 | . 1 . 1 1 . . Shots Hit Robots 344 | . 79 11 119 2 127 6 Core Hits 120 | . 35 5 39 2 38 1 Critical Kills 3 | . . . . . 3 . Critical Parts Destroyed 11 | . 1 . . . 10 . Critical Strikes 18 | . 3 . 1 . 13 1 Burn 3 | . 2 . 1 . . . Destroy 15 | . 1 . . . 13 1 Melee Attacks . | . . . . . . . Impact . | . . . . . . . Slashing . | . . . . . . . Piercing . | . . . . . . . Sneak Attacks . | . . . . . . . Combat Hostiles . | . . . . . . . Follow-up Attacks . | . . . . . . . Damage Inflicted 4871 | . 982 81 1264 48 2432 64 Guns 4495 | . 952 81 1200 38 2160 64 Cannons . | . . . . . . . Explosions 332 | . 26 . 34 . 272 . Melee . | . . . . . . . Ramming 44 | . 4 . 30 10 . . Kinetic 3764 | . 676 81 745 38 2160 64 Thermal 561 | . 276 . 285 . . . Explosive 263 | . . . . . 263 . Electromagnetic 239 | . 26 . 204 . 9 . Impact . | . . . . . . . Slashing . | . . . . . . . Piercing . | . . . . . . . Highest Corruption 11 | . . . . . 11 . Average Corruption 8 | . . . . . 8 . Corruption Purged 11 | . . . . . 11 . Corruption Blocked . | . . . . . . . Effects 41 | . . . . . 41 . Message Errors 5 | . . . . . 5 . Matter Fused 11 | . . . . . 11 . Heat Flow Errors 4 | . . . . . 4 . Energy Discharges 8 | . . . . . 8 . Parts Fused 1 | . . . . . 1 . Data Loss (minor) 4 | . . . . . 4 . Data Loss (major) 2 | . . . . . 2 . Misfires 4 | . . . . . 4 . Weapon Failures 2 | . . . . . 2 . Overload Shots . | . . . . . . . Overflow Damage . | . . . . . . . Projectiles . | . . . . . . . Explosions . | . . . . . . . Melee . | . . . . . . . Knockbacks 1 | . 1 . . . . . Impact 1 | . 1 . . . . . Kinetic . | . . . . . . . Secondary . | . . . . . . . Self-Inflicted Damage 46 | . 43 . . . 3 . Shots 3 | . 2 . . . 1 . Rammed 5 | . . . 4 1 . . Targets Rammed 7 | . 2 . 4 1 . . Kicked 2 | . 2 . . . . . Crushed . | . . . . . . . Highest Temperature 272 | . 195 . 43 . 272 32 Average Temperature 50 | . 81 . 15 . 52 17 Received Heat Transfer 648 | . 219 . 429 . . . Effects 1 | . . . . . 1 . Energy Bleed 1 | . . . . . 1 . Siege Activations . | . . . . . . . Robots Corrupted . | . . . . . . . Combat Hostiles . | . . . . . . . Parts Fried 3 | . . . 3 . . . Impact Corruptions . | . . . . . . . Robots Melted . | . . . . . . . Combat Hostiles . | . . . . . . . Parts Melted 2 | . 1 . 1 . . . Heat Transferred 1678 | . 925 . 753 . . . Parts Sabotaged . | . . . . . . . Parts Stolen . | . . . . . . . Parts Stripped . | . . . . . . . Power Chain Reactions 2 | . 1 . 1 . . . Latent Energy Used 191 | . . . . . 191 . LE Corruption 4 | . . . . . 4 . Alert | -11 -10 -10 -9 -9 -9 -8 ------- Run | Yrd Mat Min Mat Min Exi Min Peak Influence 313 | . 313 96 286 73 . 1 Initial 46 | . . 46 . 23 . . Average 121 | . 160 56 154 68 . . Maximum Alert Level 1 | . 1 . 1 . . . Low Security (%) 79 | . 63 100 70 100 . 100 Level 1 20 | . 36 . 29 . . . Level 2 . | . . . . . . . Level 3 . | . . . . . . . Level 4 . | . . . . . . . Level 5 . | . . . . . . . High Security . | . . . . . . . Max Security . | . . . . . . . Squads Dispatched 2 | . 2 . . . . . Investigation . | . . . . . . . Extermination . | . . . . . . . Reinforcement 2 | . 2 . . . . . Assault . | . . . . . . . Garrison . | . . . . . . . Intercept . | . . . . . . . Searches Triggered . | . . . . . . . Construction Impeded . | . . . . . . . Haulers Reinforced . | . . . . . . . Active Scanning Responses . | . . . . . . . Cargo Convoy Interrupts . | . . . . . . . Stealth | -11 -10 -10 -9 -9 -9 -8 --------- Run | Yrd Mat Min Mat Min Exi Min Distress Signals 2 | . . . 1 1 . . Communications Jammed . | . . . . . . . Distress Signals . | . . . . . . . Times Spotted 87 | . 26 5 29 3 23 1 Peak Tracking Total 9 | . 4 3 5 3 9 1 Tactical Retreats 10 | . 1 . . . 9 . Traps | -11 -10 -10 -9 -9 -9 -8 ------- Run | Yrd Mat Min Mat Min Exi Min Traps Triggered 2 | . . . . . 2 . Indirectly . | . . . . . . . Trap Hack Attempts . | . . . . . . . Triggered . | . . . . . . . Disarmed . | . . . . . . . Reprogrammed . | . . . . . . . Reused . | . . . . . . . Traps Extracted . | . . . . . . . Installed 2 | . . . . . 2 . Triggered 2 | . . 2 . . . . Most Traps Carried 2 | . . 2 2 2 2 . Machines | -11 -10 -10 -9 -9 -9 -8 ---------- Run | Yrd Mat Min Mat Min Exi Min Machines Disabled 15 | . 1 . . . 14 . Max in Single Turn 1 | . 1 . . . 1 . Machines Repaired . | . . . . . . . Machines Dismantled . | . . . . . . . Machines Sabotaged . | . . . . . . . Overloaded Fab Kills . | . . . . . . . Hacking | -11 -10 -10 -9 -9 -9 -8 --------- Run | Yrd Mat Min Mat Min Exi Min Machines Accessed 8 | . 5 . 1 . 2 . Terminals 5 | . 5 . . . . . Fabricators . | . . . . . . . Repair Stations 1 | . . . 1 . . . Recycling Units . | . . . . . . . Scanalyzers . | . . . . . . . Garrison Access . | . . . . . . . Total Hacks 28 | . 20 . 6 . 2 . Successful 16 | . 9 . 5 . 2 . Failed 12 | . 11 . 1 . . . Catastrophic 1 | . 1 . . . . . Database Lockouts . | . . . . . . . Manual 18 | . 17 . . . 1 . Terminals 20 | . 20 . . . . . Fabricators . | . . . . . . . Repair Stations 6 | . . . 6 . . . Recycling Units . | . . . . . . . Scanalyzers . | . . . . . . . Garrison Access . | . . . . . . . Terminal Hacks 5 | . 3 . . . 2 . Record 1 | . . . . . 1 . Robot Analysis 2 | . 2 . . . . . Zone Layout 1 | . 1 . . . . . Derelict Proto ID Bank 1 | . . . . . 1 . Fabricator Hacks . | . . . . . . . Repair Station Hacks 5 | . . . 5 . . . Scan Component 3 | . . . 3 . . . Repair 2 | . . . 2 . . . Recycling Unit Hacks . | . . . . . . . Scanalyzer . | . . . . . . . Garrison Access Hacks . | . . . . . . . Unauthorized Hacks 6 | . 6 . . . . . Terminals 6 | . 6 . . . . . Botnet 2 | . 2 . . . . . Skim 4 | . 4 . . . . . Fabricators . | . . . . . . . Repair Stations . | . . . . . . . Recycling Units . | . . . . . . . Scanalyzers . | . . . . . . . Garrison Access . | . . . . . . . Data Cores Recovered . | . . . . . . . Used . | . . . . . . . Hacking Detections 6 | . 5 . 1 . . . Full Trace Events . | . . . . . . . Feedback Events . | . . . . . . . Feedback Blocked . | . . . . . . . Robot Schematics Acquired . | . . . . . . . Robots Built . | . . . . . . . Authchips . | . . . . . . . Time . | . . . . . . . Total Robot Build Rating . | . . . . . . . Part Schematics Acquired . | . . . . . . . Parts Built . | . . . . . . . Authchips . | . . . . . . . Time . | . . . . . . . Total Part Build Rating . | . . . . . . . Parts Repaired 2 | . . . 2 . . . Time 52 | . . . 52 . . . Parts Recycled . | . . . . . . . Recycled Matter . | . . . . . . . Retrieved Matter . | . . . . . . . Retrieved Components . | . . . . . . . Parts Scanalyzed . | . . . . . . . Part Schematics Acquired . | . . . . . . . Parts Damaged . | . . . . . . . Bothacking | -11 -10 -10 -9 -9 -9 -8 ------------ Run | Yrd Mat Min Mat Min Exi Min Used RIF Installer . | . . . . . . . Robots Hacked . | . . . . . . . Non-combat . | . . . . . . . Combat . | . . . . . . . Robot Hacks Applied . | . . . . . . . Relay Couplers Released . | . . . . . . . Fabnet Peak Effective % . | . . . . . . . Robots Rewired . | . . . . . . . Allies Hacked . | . . . . . . . Hacks Repelled . | . . . . . . . Allies | -11 -10 -10 -9 -9 -9 -8 -------- Run | Yrd Mat Min Mat Min Exi Min Total Allies 5 | . . 2 . 3 . . Largest Group 3 | . . 2 2 3 3 . Highest-Rated Group 40 | . . 35 35 40 40 . Highest-Rated Ally 31 | . . 31 31 16 16 . Total Orders 3 | . . . . . 3 . STAY 3 | . . . . . 3 . Ally Attacks 28 | . . 6 . . 22 . Total Damage 206 | . . 104 . . 102 . Kills 2 | . . . . . 2 . Allies Corrupted . | . . . . . . . Allies Melted . | . . . . . . . Intel | -11 -10 -10 -9 -9 -9 -8 ------- Run | Yrd Mat Min Mat Min Exi Min Robot Analysis Total 2 | . 2 . . . . . Derelict Logs Recovered 3 | . . 2 . 1 . . Drone Launches . | . . . . . . . Drone Recoveries . | . . . . . . . Exploration | -11 -10 -10 -9 -9 -9 -8 ------------- Run | Yrd Mat Min Mat Min Exi Min Turns Passed 6167 | . 915 815 1261 384 2761 31 Spaces Moved 2405 | 1 442 415 480 158 899 10 Core . | . . . . . . . Treads 1547 | . . . 480 158 899 10 Legs 858 | 1 442 415 . . . . Wheels . | . . . . . . . Hover . | . . . . . . . Flight . | . . . . . . . Fastest Speed 120 | 120 120 190 160 240 240 240 Average Speed 208 | 120 156 190 189 240 246 240 Slowest Speed 320 | 120 190 190 240 240 320 240 Overloaded Moves . | . . . . . . . Propulsion Burnouts . | . . . . . . . Robots Hopped . | . . . . . . . Cave-ins Triggered . | . . . . . . . Exploration Rate (%) 46 | 2 80 75 42 36 88 5 Regions Visited 6 Branch Regions 4 Pre-discovered Areas 4 | . . 2 . 1 1 . Known Exits Taken . | . . . . . . . Unknown Exits Taken 6 | 1 1 1 1 1 1 . Scrap Searched 1 | . . 1 . . . . Spaces Dug . | . . . . . . . Terrain Destroyed 31 | . 6 . 2 . 21 2 Melee . | . . . . . . . Projectile 9 | . . . . . 7 2 AOE 21 | . 6 . 2 . 13 . Terrain Rammed . | . . . . . . . Walls Destroyed . | . . . . . . . Machines Disabled . | . . . . . . . Actions | -11 -10 -10 -9 -9 -9 -8 --------- Run | Yrd Mat Min Mat Min Exi Min Total 3156 | . 543 431 709 161 1298 14 Wait 311 | . 13 . 65 . 233 . Move 2399 | . 441 414 479 157 898 10 Hop . | . . . . . . . Pick Up 64 | . 11 4 26 2 21 . Fast Attach 15 | . 1 . 11 . 3 . Attach 17 | . 5 . 5 . 7 . Detach 1 | . . . 1 . . . Swap 19 | . 4 1 9 . 5 . Drop 49 | . 3 4 29 . 13 . Fire 269 | . 63 8 77 1 116 4 Melee . | . . . . . . . Ram . | . . . . . . . Kick 2 | . 2 . . . . . Crush 5 | . . . 4 1 . . Escape Stasis . | . . . . . . . Rewire 3 | . . . 3 . . . Trap 2 | . . . . . 2 . Miscellaneous . | . . . . . . . Route ------- -11/Scrapyard -10/Materials (discovered 4 exits: *Mat x3 / [*Min]) -10/Mines (discovered 2 exits: *Mat x2) -9/Materials (discovered 2 exits: [*Mat] / [*Min]) -9/Mines (discovered 2 exits: [*Mat] / *Exi) -9/Exiles -8/Mines History --------- Turn | Location | Event 1 | -11/Scrapyard | Discovered new exit (range 0) 1 | -11/Scrapyard | Entered Materials 92 | -10/Materials | Discovered new exit (range 7) 206 | -10/Materials | Discovered new exit (range 4) 324 | -10/Materials | Build established: Mutant 544 | -10/Materials | Core integrity fell below 50% 554 | -10/Materials | Discovered new exit (range 14) 591 | -10/Materials | Lost 3 parts (1p1n1w) 872 | -10/Materials | Build established: Scavenger-Mutant 885 | -10/Materials | Discovered new exit (range 13) 916 | -10/Materials | Entered Mines 917 | -10/Mines | Met a Derelict testing a Signal Generator 922 | -10/Mines | Found Signal Generator 971 | -10/Mines | Discovered new exit (range 6) 974 | -10/Mines | Received a Rocket Launcher from a helpful Derelict 1187 | -10/Mines | Learned location of Zion (-7) 1290 | -10/Mines | Found a hidden stash of uninstalled traps 1662 | -10/Mines | Discovered new exit (range 8) 1731 | -10/Mines | Entered Materials 1731 | -9/Materials | Accompanied by 2 allies 1731 | -9/Materials | Evolved 2 slots: Propulsion x1, Utility x1 1736 | -9/Materials | Led the pair of lost Derelicts to an unsafe place 2025 | -9/Materials | Discovered new exit (range 6) 2438 | -9/Materials | Discovered new exit (range 15) 2933 | -9/Materials | Repaired Lgt. Treads 2960 | -9/Materials | Repaired Lgt. Armor Plating 2992 | -9/Materials | Entered Mines 3012 | -9/Mines | Learned 2 Materials zone layouts 3037 | -9/Mines | Met a Derelict bent on vengeance 3097 | -9/Mines | Assembled infested the area 3102 | -9/Mines | Assisted by a Guerilla fighting off Assembled 3108 | -9/Mines | Assisted by bots powering up and referring to "LRC-V3" 3249 | -9/Mines | Discovered new exit (range 11) 3252 | -9/Mines | Learned location of Storage (-7) 3362 | -9/Mines | Deemed a non-threat by the Exiles lab entrance 3362 | -9/Mines | Discovered new exit (range 5) 3376 | -9/Mines | Entered Exiles 3376 | -9/Exiles | Accompanied by 3 allies 3449 | -9/Exiles | Met 8R-AWN 3483 | -9/Exiles | Met EX-HEX 3586 | -9/Exiles | Met EX-DEC 4029 | -9/Exiles | Met EX-BIN 4063 | -9/Exiles | Aligned with FarCom system 4065 | -9/Exiles | Given EX-Vault access code 4123 | -9/Exiles | Opened EX-Vault 4137 | -9/Exiles | Found Latent Energy Streamer 4186 | -9/Exiles | Warned to stay clear of 0b10 Research branches 4428 | -9/Exiles | Attacked by the Exiles 4604 | -9/Exiles | Core integrity fell below 50% 4670 | -9/Exiles | System corruption reached 10% 4692 | -9/Exiles | Destroyed 8R-AWN 4715 | -9/Exiles | Found Prototype Ballistic Gun 4719 | -9/Exiles | Found Prototype Protection 4720 | -9/Exiles | Lost 6 parts (1p2n1u2w) 4849 | -9/Exiles | Build established: Mutant 4854 | -9/Exiles | Identified 8R-AWN's Boregun 5243 | -9/Exiles | Destroyed EX-DEC 5245 | -9/Exiles | Destroyed EX-BIN 5289 | -9/Exiles | Found Prototype Processor 5314 | -9/Exiles | Destroyed EX-HEX 5326 | -9/Exiles | Found Prototype Device 5326 | -9/Exiles | Identified System Purifier 5404 | -9/Exiles | Build established: Scavenger-Mutant 6108 | -9/Exiles | Discovered new exit (range 10) 6137 | -9/Exiles | Entered Mines 6160 | -8/Mines | CL-ANK came to Exiles' defense 6168 | -8/Mines | Destroyed by CL-ANK with CL-ANK's Mallet Last Messages --------------- 06008_ Acquired 20 matter. 06018_ Dropped Hvy. Assault Rifle. 06018_ Acquired Hcp. Matter Pod. 06022_ Extracted 67 matter. 06043_ Extracted 50 matter. 06046_ Extracted 83 matter. 06108_ EXIT=FOUND A strange signal echoes through the mines. LOCATION=UNKNOWN GOAL=ESCAPE 06160_ CL-ANK: "I came as fast as I could... Wait, it was you!" 06161_ HV Slug penetrates CL-ANK. 06161_ CL-ANK suffers critical hit (Destroy). 06161_ HV Slug penetrates Wall. 06164_ HV Slug penetrates CL-ANK. 06164_ HV Slug penetrates Wall. 06164_ Lgt. Treads destroyed. 06166_ HV Slug penetrates Wall. 06166_ HV Slug penetrates Earth. 06168_ HV Slug penetrates Wall. Map ----- +----------------------------------------------------+ | ?????????????????????????????????????????????????? | | ?????????????????????????????????????????????????? | | ?????????????????????????????????????????????????? | | ?????????????????????????????????????????????????? | | ?????????????????????????????????????????????????? | | ?????????????????????????????????????????????????? | | ?????????????????????????????????????????????????? | | ?????????????????????????????????????????????????? | | ?????????????????????????????????????????????????? | | ?????????????????????????????????????????????????? | | ?????????????????????????????????????????????????? | | ?????????????????????????????????????????????????? | | ?????????????????????????????????????????????????? | | ?????????????????????????????????????????????????? | | ?????????????????????????????????????????????????? | | ?????????????????????????????????????????????????? | | ?????????????????????????????????????????????????? | | ?????????????????????????????????????????????????? | | ?????????????????????????####????????????????????? | | ????????????????????????## ###??????????????????? | | ????????????????????????# ##?????????????????? | | ????????????????????????# ##????????????????? | | ?????????????????????????# ##???????????????? | | ???????????????????????### ###?????????????? | | ?????????????????????###;# ##????????????? | | ?????????????????????# b@ #????????????? | | ?????????????????????# #### #????????????? | | ??????????????????????????### #????????????? | | ????????????????????????????## ##????????????? | | ?????????????????????????????#######?????????????? | | ?????????????????????????????????????????????????? | | ?????????????????????????????????????????????????? | | ?????????????????????????????????????????????????? | | ?????????????????????????????????????????????????? | | ?????????????????????????????????????????????????? | | ?????????????????????????????????????????????????? | | ?????????????????????????????????????????????????? | | ?????????????????????????????????????????????????? | | ?????????????????????????????????????????????????? | | ?????????????????????????????????????????????????? | | ?????????????????????????????????????????????????? | | ?????????????????????????????????????????????????? | | ?????????????????????????????????????????????????? | | ?????????????????????????????????????????????????? | | ?????????????????????????????????????????????????? | | ?????????????????????????????????????????????????? | | ?????????????????????????????????????????????????? | | ?????????????????????????????????????????????????? | | ?????????????????????????????????????????????????? | | ?????????????????????????????????????????????????? | +----------------------------------------------------+ Best States ------------- Heat Dissipation 42 Energy Generation 14 Energy Capacity 280 Matter Stores 300 Matter Capacity 300 Sight Range 16 Terrain Scan Density 10 Armor Coverage 225 Weapon Shielding 33 Weapon Cycling 25 Evasion (%) 55 Recoil Reduction 3 Item Schematics ----------------- None Robot Schematics ------------------ None Fabricated ------------ Nothing Alien Tech Used ----------------- None Achievements -------------- None Challenges ------------ None Game ------ Seed ControlMiningShotgun Manual? 0 Play Time 00:24:11 Cumulative 432.6 hours Start 2024.09.02 @ 21:22:24 End 2024.09.02 @ 21:46:15 Sessions 1 Manual Loads 0 Difficulty Rogue Special Mode None Game No. 438 Rogue 438 Adventurer 0 Explorer 0 Win Type - Total 31 Types 16/3/6/1/2/0/3/0/0 Lore% 86 Gallery% 88 Achievement% 82 Wizard Run 0 Options --------- Layout 0 ASCII 0 Keyboard 0 Movement Arrows Keybinds 0 Fullscreen 2 Font 24/Smallcaps Map View 76x50 Zoom Use 0% Tactical HUD 1 Map Filters NONE Filters NONE Steam 1 RUN: b70df03b-4c56-43f6-af86-c82c45803e61